bitfinex-derivatives/quotes_ETHF0:USTF0_20250701
["timestamp","ask_amount","ask_price","bid_price","bid_amount"]
[1751341716193,10.830664,2485.1,2485.0,0.80461]
[1751341717286,10.026074,2485.1,2485.0,0.80461]
[1751341717488,10.830664,2485.1,2485.0,0.80461]
[1751341719590,10.026074,2485.1,2485.0,0.80461]
[1751341719795,8.669874,2485.1,2485.0,0.80461]
[1751341720994,9.474464,2485.1,2485.0,0.80461]
[1751341721190,9.972474,2485.1,2485.0,0.80461]
[1751341722199,10.777064,2485.1,2485.0,0.80461]
[1751341722598,9.972474,2485.1,2484.9,2.28104466]
[1751341722798,10.777084,2485.1,2485.0,0.80462]
[1751341728516,9.972474,2485.1,2485.0,0.80462]
[1751341728802,8.669874,2485.1,2485.0,0.80462]
[1751341731999,8.669874,2485.1,2485.0,2.77082]
[1751341732899,9.474464,2485.1,2485.0,2.77082]
[1751341733405,8.669874,2485.1,2485.0,2.77082]
[1751341736306,9.474464,2485.1,2485.0,2.77082]
[1751341736607,9.474464,2485.1,2485.0,0.80462]
[1751341738100,0.80464,2485.0,2484.9,0.80462]
[1751341738305,0.80464,2485.0,2484.9,0.80466]
[1751341739501,9.474484,2485.1,2485.0,0.80462]
[1751341741708,8.669874,2485.1,2485.0,0.80462]
[1751341741908,9.474464,2485.1,2485.0,0.80462]
[1751341742405,9.474464,2485.1,2484.9,0.80463]
[1751341742406,0.80465,2485.0,2484.9,0.80463]
[1751341745210,9.474524,2485.0,2484.9,0.80463]
[1751341747508,8.669874,2485.0,2484.6,1.86000156]
[1751341747714,8.669874,2485.0,2484.6,1.20510156]
[1751341747715,0.80472,2484.7,2484.6,1.20510156]
[1751341747918,0.80472,2484.7,2484.6,0.80475]
[1751341750210,10.95091866,2484.7,2484.4,1.20510156]
[1751341750412,0.80478,2484.6,2484.5,0.80475]
[1751341751205,8.669874,2484.7,2484.6,0.80475]
[1751341751706,9.474594,2484.7,2484.6,2.86085]
[1751341753211,9.474594,2484.7,2484.6,1.52205]
[1751341755611,8.669874,2484.7,2484.6,1.52205]
[1751341756909,8.669874,2484.7,2484.6,2.82275]
[1751341765726,8.669874,2484.7,2484.6,4.02785156]
[1751341766826,8.669874,2484.7,2484.6,9.42955208]
[1751341767018,8.669874,2484.7,2484.6,7.82275]
[1751341768023,8.669874,2484.7,2484.6,19.18475]
[1751341768519,8.669874,2484.7,2484.6,15.39066539]
[1751341768722,8.669874,2484.7,2484.6,15.79155208]
[1751341772325,8.669874,2484.7,2484.6,18.99935208]
[1751341773731,8.669874,2484.7,2484.6,17.39255]
[1751341773928,8.669874,2484.7,2484.6,18.99935208]
[1751341777230,8.669874,2484.7,2484.6,17.39255]
[1751341782534,8.669874,2484.7,2484.6,18.59773925]
[1751341783036,8.669874,2484.7,2484.6,5.21773925]
[1751341783239,8.669874,2484.7,2484.6,40.98275578]
[1751341785239,8.669874,2484.7,2484.6,39.77755]
[1751341787240,8.669874,2484.7,2484.6,36.56975]
[1751341787437,8.669874,2484.7,2484.6,39.77755]
[1751341788241,8.669874,2484.7,2484.6,41.38435208]
[1751341790736,8.669874,2484.7,2484.6,5.21886839]
[1751341790942,8.669874,2484.7,2484.6,5.61935208]
[1751341795047,8.669874,2484.7,2484.6,5.21944809]
[1751341795247,10.025274,2484.7,2484.6,5.21944809]
[1751341797647,10.025274,2484.7,2484.6,2.01164809]
[1751341797852,10.829994,2484.7,2484.6,2.01164809]
[1751341798150,10.025274,2484.7,2484.6,2.01164809]
[1751341800457,10.025274,2484.7,2484.6,0.80475]
[1751341801353,8.669874,2484.7,2484.6,0.80475]
[1751341801557,8.669874,2484.7,2484.6,2.01164809]
[1751341811154,8.669874,2484.7,2484.6,2.70154809]
[1751341811354,8.669874,2484.7,2484.6,4.12014809]
[1751341816966,8.669874,2484.7,2484.6,7.32794809]
[1751341817867,8.669874,2484.7,2484.6,7.72785208]
[1751341821069,6.783544,2484.7,2484.6,7.72785208]
[1751341821269,5.676024,2484.7,2484.6,11.12105]
[1751341821470,3.456444,2484.7,2484.6,11.12105]
[1751341822071,1.565184,2484.7,2484.6,11.12105]
[1751341822378,4e-06,2484.7,2484.6,11.12105]
[1751341824266,4e-06,2484.7,2484.6,6.12105]
[1751341825072,4e-06,2484.7,2484.6,7.72933496]
[1751341825472,4e-06,2484.7,2484.6,6.12105]
[1751341828476,4e-06,2484.7,2484.6,8.53259115]
[1751341828674,4e-06,2484.7,2484.6,44.461202]
[1751341829269,4e-06,2484.7,2484.6,45.851702]
[1751341831074,4e-06,2484.7,2484.6,43.44009466]
[1751341837581,4e-06,2484.7,2484.6,44.14699466]
[1751341844982,0.6809,2485.3,2485.2,0.80456]
[1751341845176,0.6809,2485.3,2485.2,32.30497994]
[1751341845583,0.6809,2485.3,2485.2,33.69897994]
[1751341845883,0.6809,2485.3,2485.2,34.50226759]
[1751341846483,0.6809,2485.3,2485.2,32.09240466]
[1751341846889,1.3739,2485.7,2485.6,0.80443]
[1751341847094,1.3739,2485.7,2485.6,28.41623]
[1751341847298,3.2078,2486.5,2486.4,0.80417]
[1751341847491,4.5753,2486.5,2486.4,0.80417]
[1751341847692,9.5753,2486.5,2486.4,0.80417]
[1751341848191,12.78232985,2486.5,2486.4,0.80417]
[1751341848389,9.57452985,2486.5,2486.4,0.80417]
[1751341848792,6.3675,2486.5,2486.4,0.80417]
[1751341849390,6.3675,2486.5,2486.3,0.80418]
[1751341849590,1.3675,2486.4,2486.3,0.80418]
[1751341849988,6.3675,2486.4,2486.3,0.80418]
[1751341850193,7.0779,2486.4,2486.3,0.80418]
[1751341851996,2.0779,2486.4,2486.3,0.80418]
[1751341861193,0.7104,2486.4,2486.3,0.80418]
[1751341861396,1.3804,2486.9,2486.8,0.80404]
[1751341861602,0.6675,2487.0,2486.9,0.80401]
[1751341861791,1.3804,2487.2,2487.1,0.80394]
[1751341862294,1.3804,2487.2,2487.1,3.08498466]
[1751341862796,2.056,2487.2,2487.1,3.08498466]
[1751341864298,2.056,2487.2,2487.1,0.80394]
[1751341867600,0.6756,2487.2,2487.1,0.80394]
[1751341868809,0.6554,2487.6,2487.5,0.80382]
[1751341869810,2.0582,2487.6,2487.5,0.80382]
[1751341870211,2.7292,2487.6,2487.5,0.80382]
[1751341872308,0.671,2487.6,2487.5,0.80382]
[1751341873613,1.47478,2487.6,2487.5,0.80382]
[1751341873807,2.81658,2487.6,2487.5,0.80382]
[1751341874407,2.0128,2487.6,2487.5,0.80382]
[1751341875313,2.81658,2487.6,2487.5,0.80382]
[1751341875708,2.81658,2487.6,2487.4,0.80382]
[1751341875907,3.2078,2487.5,2487.1,0.6527]
[1751341876107,5.32274,2487.5,2487.3,0.80386]
[1751341876611,5.32274,2487.5,2487.1,1.45662]
[1751341876612,0.80391,2487.2,2487.1,1.45662]
[1751341876813,0.80391,2487.2,2487.1,0.80392]
[1751341877716,1.5128,2487.3,2487.2,0.80391]
[1751341881222,0.80392,2487.2,2487.1,0.80392]
[1751341882315,0.80392,2487.2,2487.0,2.28104466]
[1751341882316,1.5128,2487.3,2487.2,0.80391]
[1751341883121,0.7089,2487.3,2487.2,0.80391]
[1751341883415,3.2078,2487.5,2487.4,0.80385]
[1751341883617,0.80381,2487.6,2487.5,0.8038]
[1751341884021,5.80381,2487.6,2487.5,0.8038]
[1751341884318,0.80377,2487.7,2487.6,0.80377]
[1751341884821,4.67664,2487.8,2487.7,0.80375]
[1751341885322,9.67664,2487.8,2487.7,0.80375]
[1751341885623,4.67664,2487.8,2487.7,0.80375]
[1751341885823,0.80379,2487.6,2487.5,0.8038]
[1751341886718,6.15394466,2487.8,2487.3,1.3509]
[1751341887021,0.80376,2487.7,2487.6,0.80377]
[1751341887525,0.80376,2487.7,2487.5,0.80379]
[1751341887724,0.80376,2487.7,2487.6,0.80378]
[1751341887925,0.80379,2487.6,2487.5,0.80379]
[1751341889828,4.01157,2487.7,2487.6,0.80378]
[1751341890127,3.2078,2487.7,2487.6,0.80378]
[1751341890329,4.01155,2487.7,2487.6,0.80378]
[1751341891629,7.21857985,2487.7,2487.6,0.80378]
[1751341892228,0.80381,2487.6,2487.5,0.80378]
[1751341892427,7.59368451,2487.6,2487.5,0.80378]
[1751341892628,4.38665466,2487.6,2487.5,0.80378]
[1751341892828,0.80385,2487.5,2487.4,0.80383]
[1751341893028,1.51715,2487.5,2487.4,0.80383]
[1751341894631,0.80389,2487.4,2487.3,0.80386]
[1751341894932,0.80391,2487.3,2487.2,0.80389]
[1751341896426,0.80391,2487.2,2487.1,4.69782]
[1751341896630,1.48061,2487.2,2487.1,3.8939]
[1751341896936,1.48061,2487.2,2487.1,4.01174]
[1751341898631,1.48061,2487.2,2487.1,3.2078]
[1751341898831,0.80394,2487.1,2487.0,1.45365]
[1751341903939,0.80398,2487.0,2486.9,0.6567]
[1751341904140,0.80404,2486.8,2486.7,4.67195]
[1751341904740,1.51563,2486.9,2486.8,0.80404]
[1751341906643,0.80404,2486.8,2486.7,1.46415]
[1751341909450,0.80401,2486.9,2486.8,0.80404]
[1751341909944,0.80404,2486.8,2486.7,2.76955]
[1751341914449,0.80404,2486.8,2486.7,2.76957]
[1751341915149,0.80402,2486.9,2486.8,0.80399]
[1751341916458,0.80401,2487.0,2486.9,0.80398]
[1751341916656,0.80397,2487.1,2487.0,1.51474]
[1751341917154,0.80393,2487.2,2487.1,0.80391]
[1751341918354,0.80393,2487.2,2487.1,2.23491]
[1751341919851,0.80393,2487.2,2487.1,1.431]
[1751341920051,0.80394,2487.1,2487.0,1.51475]
[1751341921760,4.01174,2487.1,2487.0,0.7108]
[1751341921955,0.80401,2486.9,2486.7,0.6601]
[1751341922155,0.6992,2487.0,2486.7,2.11265]
[1751341922355,0.80404,2486.8,2486.7,2.11265]
[1751341923358,0.80404,2486.8,2486.7,1.3086]
[1751341923563,0.80404,2486.8,2486.7,2.11267]
[1751341933063,0.6992,2487.0,2486.7,2.11267]
[1751341933266,0.6992,2487.0,2486.8,0.80401]
[1751341933267,0.80403,2486.9,2486.8,0.80401]
[1751341934170,0.80404,2486.8,2486.7,2.11265]
[1751341937568,0.80403,2486.9,2486.8,0.80401]
[1751341937772,0.6992,2487.0,2486.7,3.58964466]
[1751341937973,1.50322,2487.0,2486.9,0.80401]
[1751341940377,1.50318,2487.0,2486.9,0.80401]
[1751341942873,0.6992,2487.0,2486.9,0.80401]
[1751341943080,1.50318,2487.0,2486.9,0.80401]
[1751341943680,0.6992,2487.0,2486.9,0.80401]
[1751341944076,1.50318,2487.0,2486.9,0.80401]
[1751341944275,0.80392,2487.2,2487.1,0.80393]
[1751341944468,3.9252,2487.3,2487.0,0.6842]
[1751341944674,0.80394,2487.2,2487.1,0.80394]
[1751341945174,0.80394,2487.1,2487.0,2.92105]
[1751341945376,0.80394,2487.1,2487.0,2.1171]
[1751341945676,0.80394,2487.1,2487.0,2.92108]
[1751341947581,0.80394,2487.1,2487.0,1.48818]
[1751341949583,0.80398,2487.0,2486.9,0.80398]
[1751341949884,1.48178,2487.0,2486.9,0.80398]
[1751341952382,0.80392,2487.2,2486.9,4.29107466]
[1751341952587,3.20702985,2487.3,2487.2,0.80391]
[1751341952988,0.80394,2487.1,2487.0,1.51445]
[1751341953190,0.80394,2487.1,2487.0,2.89275]
[1751341955391,0.80393,2487.2,2487.1,0.80392]
[1751341956496,0.8039,2487.3,2487.2,0.80391]
[1751341957098,0.80393,2487.2,2487.1,0.80392]
[1751341958700,0.80394,2487.1,2487.0,1.51446]
[1751341958902,1.47224,2487.1,2487.0,1.51446]
[1751341963801,1.47224,2487.1,2487.0,0.7105]
[1751341964502,1.47224,2487.1,2487.0,1.51448]
[1751341966703,1.47224,2487.1,2487.0,0.7105]
[1751341967005,1.47224,2487.1,2487.0,1.51448]
[1751341969996,1.47224,2487.1,2487.0,0.7105]
[1751341970402,1.47224,2487.1,2487.0,1.51448]
[1751341971205,1.47224,2487.1,2487.0,0.7105]
[1751341971803,0.80398,2487.0,2486.9,0.80399]
[1751341973206,1.47226,2487.1,2487.0,0.80398]
[1751341973908,0.80396,2487.1,2487.0,0.80398]
[1751341974915,0.80398,2487.0,2486.9,2.22298]
[1751341977710,0.80396,2487.1,2487.0,0.80393]
[1751341980909,0.80396,2487.1,2486.9,1.419]
[1751341980910,0.80398,2487.0,2486.9,2.22299]
[1751341983818,0.80401,2486.9,2486.8,1.47163]
[1751341987616,0.804,2487.0,2486.9,0.80398]
[1751341988013,0.80397,2487.1,2487.0,0.80395]
[1751341990613,0.804,2487.0,2486.9,0.80399]
[1751341992220,0.80401,2486.9,2486.8,2.85812]
[1751341993323,0.80401,2486.9,2486.8,1.47164]
[1751341997226,0.80401,2486.9,2486.8,0.6676]
[1751341997424,0.80401,2486.9,2486.8,1.47164]
[1751341997623,0.80401,2486.9,2486.8,0.6676]
[1751341997922,0.80401,2486.9,2486.8,1.47164]
[1751342008636,0.80401,2486.9,2486.8,0.6676]
[1751342009538,0.80401,2486.9,2486.8,1.47164]
[1751342009835,0.80401,2486.9,2486.8,0.6676]
[1751342010235,0.80401,2486.9,2486.8,1.47164]
[1751342012031,0.80404,2486.8,2486.7,0.6601]
[1751342012236,0.80411,2486.6,2486.5,0.6735]
[1751342012435,0.80411,2486.6,2486.5,1.47764]
[1751342015842,0.6885,2486.7,2486.6,0.80411]
[1751342016136,4.01186,2486.8,2486.7,0.80407]
[1751342016338,4.01186,2486.8,2486.7,1.49087]
[1751342016339,3.2078,2486.8,2486.7,1.49087]
[1751342016637,0.80404,2486.9,2486.7,1.49087]
[1751342016638,0.80404,2486.9,2486.8,0.80404]
[1751342016838,0.80404,2486.9,2486.8,2.39809059]
[1751342017038,1.4841,2487.0,2486.9,0.80401]
[1751342018038,0.6801,2487.0,2486.9,0.80401]
[1751342018234,0.80401,2486.9,2486.8,4.44428059]
[1751342018740,0.80401,2486.9,2486.8,0.6667]
[1751342019132,0.80401,2486.9,2486.8,1.47074]
[1751342020336,1.4841,2487.0,2486.9,0.80401]
[1751342021138,0.80401,2486.9,2486.8,1.47072]
[1751342021631,1.4841,2487.0,2486.9,0.80401]
[1751342021836,0.804,2487.0,2486.9,0.80401]
[1751342022037,0.804,2487.0,2486.9,2.21811]
[1751342025640,0.804,2487.0,2486.9,0.80401]
[1751342029444,0.80401,2486.9,2486.8,1.47072]
[1751342038165,0.80401,2486.9,2486.8,2.89742]
[1751342040861,0.804,2487.0,2486.9,0.80398]
[1751342041763,0.80401,2486.9,2486.8,2.89741]
[1751342042765,0.804,2487.0,2486.9,0.80398]
[1751342044269,1.45763,2487.2,2487.1,0.80394]
[1751342044463,0.80393,2487.2,2487.1,0.80394]
[1751342044658,7.07952985,2487.4,2487.3,0.80388]
[1751342044962,24.337,2487.4,2487.3,1.59396364]
[1751342045358,4.01084985,2487.5,2487.4,0.80385]
[1751342045563,28.34784985,2487.5,2487.4,0.80385]
[1751342045968,3.20702985,2487.5,2487.4,0.80385]
[1751342046269,0.6647,2487.6,2487.4,0.80385]
[1751342046270,28.34780985,2487.6,2487.5,0.80382]
[1751342046473,30.59547349,2487.6,2487.5,0.80382]
[1751342047272,27.38844364,2487.6,2487.5,0.80382]
[1751342047672,0.80382,2487.5,2487.4,2.15522]
[1751342048277,24.335,2487.5,2487.4,2.15522]
[1751342048472,25.13882,2487.5,2487.4,2.15522]
[1751342049479,24.335,2487.5,2487.4,2.15522]
[1751342050878,25.13882,2487.5,2487.4,2.15522]
[1751342053471,25.13882,2487.5,2487.4,1.3514]
[1751342053672,0.80388,2487.3,2487.2,1.3384]
[1751342055475,3.07993067,2487.4,2487.3,0.80388]
[1751342059484,25.13884,2487.5,2487.4,0.80385]
[1751342060586,0.80387,2487.4,2487.3,0.80386]
[1751342063086,0.80388,2487.3,2487.2,2.14229]
[1751342065889,1.46768,2487.3,2487.2,1.3384]
[1751342066088,1.46768,2487.3,2487.1,3.2078]
[1751342066089,0.80391,2487.2,2487.1,3.2078]
[1751342066981,0.80391,2487.2,2487.1,4.01174]
[1751342069996,0.80391,2487.2,2487.1,3.2078]
[1751342070196,0.80398,2487.0,2486.9,2.19038]
[1751342070895,0.80397,2487.1,2487.0,0.80395]
[1751342071095,0.80393,2487.2,2487.1,0.80391]
[1751342071796,0.80394,2487.1,2487.0,2.15735]
[1751342072696,0.80398,2487.0,2486.9,3.39445404]
[1751342073196,0.80398,2487.0,2486.9,2.19039]
[1751342073392,0.80398,2487.0,2486.9,3.39445404]
[1751342075998,3.08004067,2487.0,2486.9,2.59046404]
[1751342076193,0.80401,2486.9,2486.8,1.20406404]
[1751342076394,3.77767067,2486.9,2486.8,1.20406404]
[1751342076595,1.50161,2486.9,2486.8,2.00810404]
[1751342077098,1.50161,2486.9,2486.8,1.86206404]
[1751342077295,1.50161,2486.9,2486.8,1.20406404]
[1751342077495,1.50161,2486.9,2486.8,2.00810404]
[1751342080001,1.50161,2486.9,2486.8,0.80404]
[1751342083910,0.80404,2486.8,2486.7,4.01185]
[1751342086510,0.80404,2486.8,2486.7,3.2078]
[1751342087010,0.80404,2486.8,2486.7,4.01187]
[1751342087907,0.80404,2486.8,2486.7,0.80407]
[1751342088107,0.80404,2486.8,2486.7,4.01187]
[1751342090209,0.80404,2486.8,2486.7,0.80407]
[1751342092625,0.80407,2486.7,2486.6,1.46209]
[1751342092818,0.80407,2486.7,2486.6,2.82139]
[1751342095925,0.80407,2486.8,2486.7,0.80406]
[1751342097029,0.80406,2486.8,2486.7,0.80404]
[1751342097221,0.6976,2486.9,2486.8,0.80401]
[1751342097222,0.80402,2486.9,2486.8,0.80401]
[1751342098524,0.804,2487.0,2486.9,0.80399]
[1751342100326,0.80396,2487.1,2487.0,0.80395]
[1751342102626,0.80396,2487.1,2487.0,2.18855]
[1751342109326,0.80393,2487.2,2487.1,0.80391]
[1751342110125,4.67319,2487.4,2487.0,3.39452]
[1751342110327,4.67319,2487.4,2487.3,0.80388]
[1751342110328,28.99019,2487.4,2487.3,0.80388]
[1751342111024,25.12084,2487.5,2487.4,0.80383]
[1751342111929,2.99346067,2487.6,2487.5,0.80382]
[1751342111930,0.7174,2487.6,2487.5,0.80382]
[1751342112121,3.2078,2487.7,2487.5,0.80382]
[1751342112327,3.2078,2487.7,2487.6,0.80378]
[1751342112521,27.5248,2487.7,2487.6,0.80378]
[1751342113431,28.32857,2487.7,2487.6,0.80378]
[1751342113929,0.80378,2487.6,2487.5,2.175]
[1751342114230,0.80382,2487.5,2487.4,1.51775]
[1751342122934,0.80382,2487.5,2487.4,0.7139]
[1751342123138,1.47052,2487.5,2487.4,1.51775]
[1751342124545,1.47052,2487.5,2487.4,0.7139]
[1751342125245,1.47052,2487.5,2487.4,1.51775]
[1751342127844,0.80385,2487.4,2487.3,1.51046]
[1751342128040,0.80385,2487.4,2487.3,0.7066]
[1751342128041,3.07991067,2487.4,2487.3,0.7066]
[1751342128245,0.80388,2487.3,2487.2,4.01168]
[1751342129644,0.80388,2487.3,2487.2,0.80388]
[1751342134645,0.80391,2487.2,2487.1,4.65923]
[1751342135246,3.07997067,2487.2,2487.1,0.6475]
[1751342136452,3.07997067,2487.2,2487.1,1.45144]
[1751342138357,3.07997067,2487.2,2487.1,0.6475]
[1751342138551,0.80391,2487.2,2487.1,1.45144]
[1751342141751,0.80394,2487.1,2487.0,0.6931]
[1751342141951,1.48594,2487.1,2487.0,0.6931]
[1751342142948,1.48594,2487.1,2487.0,1.49708]
[1751342144059,1.48594,2487.1,2487.0,0.6931]
[1751342145259,1.48594,2487.1,2487.0,0.80398]
[1751342146561,0.80401,2487.0,2486.9,0.804]
[1751342147459,0.80401,2486.9,2486.8,4.70812]
[1751342151259,0.80401,2486.9,2486.8,1.50032]
[1751342151760,0.80404,2486.8,2486.7,3.2078]
[1751342151962,3.74240067,2486.8,2486.7,3.2078]
[1751342153960,0.80414,2486.5,2486.4,0.6937]
[1751342154157,0.80414,2486.5,2486.4,1.49785]
[1751342154359,0.80413,2486.6,2486.5,0.80411]
[1751342154967,0.80409,2486.7,2486.6,0.80408]
[1751342155462,0.80412,2486.6,2486.5,0.80412]
[1751342156064,0.80412,2486.6,2486.5,2.12572]
[1751342156964,0.80412,2486.6,2486.5,1.3216]
[1751342157657,0.80412,2486.6,2486.5,2.12574]
[1751342158663,0.80412,2486.6,2486.5,1.3216]
[1751342159365,0.80412,2486.6,2486.5,2.12574]
[1751342159570,0.80414,2486.5,2486.4,1.49785]
[1751342160154,0.80414,2486.5,2486.4,0.6937]
[1751342160663,1.49214,2486.5,2486.4,1.49787]
[1751342161662,1.49214,2486.5,2486.4,0.6937]
[1751342161868,1.49214,2486.5,2486.4,1.49787]
[1751342168071,0.80414,2486.5,2486.4,1.49787]
[1751342170367,3.08020067,2486.5,2486.4,0.6937]
[1751342170571,0.80417,2486.4,2486.3,0.706]
[1751342171971,0.80424,2486.2,2486.1,4.69715]
[1751342172662,0.80424,2486.2,2486.1,1.48935]
[1751342175876,0.80424,2486.2,2486.1,0.6851]
[1751342176174,0.80424,2486.2,2486.1,1.48937]
[1751342179380,0.80424,2486.2,2486.1,2.89707]
[1751342180382,3.78339067,2486.3,2486.2,0.80424]
[1751342184984,1.50733,2486.3,2486.2,0.80424]
[1751342187783,3.10215014,2486.3,2486.2,0.80424]
[1751342202601,1.59482014,2486.4,2486.3,0.8042]
[1751342203005,1.59482014,2486.4,2486.2,2.11481]
[1751342203006,25.89482014,2486.4,2486.2,2.11481]
[1751342203300,0.8042,2486.3,2486.2,2.11481]
[1751342208812,26.69902014,2486.4,2486.3,0.8042]
[1751342210107,26.69902014,2486.4,2486.3,1.493]
[1751342214409,24.3,2486.4,2486.3,1.493]
[1751342214908,3.2078,2486.5,2486.4,0.80417]
[1751342215107,27.5048,2486.5,2486.4,2.39899014]
[1751342215307,27.5048,2486.5,2486.4,3.81109014]
[1751342216114,24.297,2486.7,2486.6,0.80411]
[1751342216310,24.297,2486.7,2486.6,2.39893014]
[1751342216818,24.297,2486.7,2486.6,3.77883014]
[1751342217817,0.80404,2486.8,2486.7,0.80407]
[1751342218017,25.10004,2486.8,2486.7,0.80407]
[1751342218421,24.296,2486.8,2486.7,0.80407]
[1751342218618,25.10004,2486.8,2486.7,0.80407]
[1751342219412,24.296,2486.8,2486.7,0.80407]
[1751342220516,5.60660014,2487.0,2486.9,0.80401]
[1751342220721,27.5018,2487.0,2486.9,0.80401]
[1751342221615,28.30578,2487.0,2486.9,0.80401]
[1751342221822,0.80401,2486.9,2486.8,2.39884014]
[1751342222119,0.80401,2486.9,2486.8,0.80402]
[1751342222324,2.39883014,2486.9,2486.8,0.80402]
[1751342222620,1.59482014,2486.9,2486.8,0.80402]
[1751342223022,2.39883014,2486.9,2486.8,0.80402]
[1751342224120,1.59482014,2486.9,2486.8,0.80402]
[1751342224322,2.39883014,2486.9,2486.8,0.80402]
[1751342228724,0.80404,2486.8,2486.7,2.10475]
[1751342230924,0.80404,2486.8,2486.7,0.80405]
[1751342234220,1.59482014,2486.9,2486.5,0.6871]
[1751342234424,0.80411,2486.6,2486.5,0.80414]
[1751342234728,25.09211,2486.6,2486.5,0.80414]
[1751342235226,26.68692014,2486.7,2486.6,0.80411]
[1751342236829,24.288,2486.7,2486.6,0.80411]
[1751342237326,25.09207,2486.7,2486.6,1.46511]
[1751342238823,3.04888014,2486.8,2486.7,0.80407]
[1751342239026,25.74106,2486.8,2486.7,2.39889014]
[1751342239928,25.74106,2486.8,2486.7,0.80407]
[1751342240129,24.937,2486.8,2486.7,0.80407]
[1751342240829,2.39882014,2487.0,2486.9,0.80401]
[1751342241031,25.091,2487.0,2486.9,0.80401]
[1751342241531,0.804,2487.0,2486.9,0.80401]
[1751342241829,24.948,2487.1,2487.0,0.80398]
[1751342242330,0.661,2487.1,2487.0,0.80398]
[1751342242730,1.46494,2487.1,2487.0,0.80398]
[1751342245732,0.661,2487.1,2487.0,0.80398]
[1751342247034,1.46494,2487.1,2487.0,0.80398]
[1751342252036,0.661,2487.1,2487.0,0.80398]
[1751342253233,25.0899,2487.3,2487.2,0.80391]
[1751342253434,25.779,2487.3,2487.2,0.80391]
[1751342253635,24.9751,2487.3,2487.2,0.80391]
[1751342253835,25.77898,2487.3,2487.2,0.80391]
[1751342254737,1.49498,2487.3,2487.2,0.80391]
[1751342255841,0.80393,2487.2,2487.1,0.80392]
[1751342267861,27.37267261,2487.3,2487.2,0.80391]
[1751342268051,0.80393,2487.2,2487.1,0.80392]
[1751342269255,27.37268261,2487.3,2487.2,0.80391]
[1751342270655,0.80393,2487.2,2487.1,0.80392]
[1751342283361,0.80394,2487.1,2487.0,2.80655]
[1751342287271,0.80394,2487.1,2487.0,2.80658]
[1751342289274,0.80394,2487.1,2487.0,1.50908]
[1751342289968,26.56877261,2487.3,2487.0,0.7051]
[1751342290175,0.80394,2487.2,2487.1,0.80391]
[1751342291076,2.39761261,2487.2,2487.1,0.80391]
[1751342292377,25.77001,2487.3,2487.2,0.80391]
[1751342293277,0.80394,2487.2,2487.1,0.80392]
[1751342293576,0.80394,2487.1,2487.0,2.90695]
[1751342295176,2.39760261,2487.2,2487.1,0.80394]
[1751342296980,2.39760261,2487.2,2486.7,2.00811404]
[1751342296981,0.80404,2486.8,2486.7,2.00811404]
[1751342297175,2.39771261,2486.8,2486.7,0.80405]
[1751342297573,3.04481261,2486.8,2486.7,0.80405]
[1751342297981,0.80407,2486.7,2486.6,2.72435404]
[1751342298184,0.80411,2486.6,2486.5,5.21597404]
[1751342298379,2.39778261,2486.6,2486.5,5.21597404]
[1751342299184,2.39778261,2486.6,2486.5,3.2078]
[1751342299880,2.39778261,2486.6,2486.5,4.01194]
[1751342300178,2.39778261,2486.6,2486.5,3.2078]
[1751342300976,0.80414,2486.5,2486.4,0.80415]
[1751342301176,1.49224,2486.5,2486.4,0.80415]
[1751342302184,0.6881,2486.5,2486.4,0.80415]
[1751342302884,1.49224,2486.5,2486.4,0.80415]
[1751342308077,0.6881,2486.5,2486.4,0.80415]
[1751342308277,2.39776261,2486.7,2486.6,0.80411]
[1751342308482,0.80413,2486.6,2486.5,0.80412]
[1751342309081,2.39780261,2486.6,2486.5,0.80412]
[1751342312384,0.80411,2486.6,2486.5,0.80412]
[1751342312578,27.38607261,2486.7,2486.6,0.80411]
[1751342313183,0.80412,2486.6,2486.5,0.80411]
[1751342318485,0.80417,2486.5,2486.4,0.80415]
[1751342327988,0.80413,2486.6,2486.5,0.80411]
[1751342332593,26.58197261,2486.7,2486.4,1.3642]
[1751342332594,3.11008261,2486.7,2486.6,0.80411]
[1751342332789,25.07711,2486.7,2486.6,0.80411]
[1751342333294,2.39774261,2486.8,2486.7,0.80407]
[1751342333491,26.67074261,2486.8,2486.7,0.80407]
[1751342334495,1.50493,2486.9,2486.8,0.80404]
[1751342334691,0.804,2487.0,2486.7,2.92307261]
[1751342334989,0.804,2487.0,2486.9,1.59367261]
[1751342334990,0.80398,2487.0,2486.9,1.59367261]
[1751342335195,0.80401,2486.9,2486.8,2.92307261]
[1751342335396,2.39767261,2487.0,2486.9,0.80401]
[1751342335697,0.80401,2486.9,2486.8,2.13342]
[1751342335896,0.80401,2486.9,2486.8,0.80402]
[1751342337097,1.59367261,2487.0,2486.6,5.37427]
[1751342337293,0.80407,2486.7,2486.6,1.3624]
[1751342337598,0.80407,2486.7,2486.6,2.16651]
[1751342337798,1.46577,2486.7,2486.6,2.16651]
[1751342340096,0.80412,2486.6,2486.5,0.80414]
[1751342341198,1.4658,2486.7,2486.6,0.80411]
[1751342342206,0.80414,2486.6,2486.5,0.80413]
[1751342344404,0.80417,2486.4,2486.3,4.67497]
[1751342347810,0.80416,2486.5,2486.4,0.80414]
[1751342348103,3.08185015,2486.6,2486.5,0.80414]
[1751342349807,0.80417,2486.5,2486.4,0.80415]
[1751342355111,0.80414,2486.5,2486.4,0.80415]
[1751342355308,0.8041,2486.7,2486.6,0.80411]
[1751342355507,0.80406,2486.8,2486.7,0.80407]
[1751342355713,1.45648,2487.0,2486.9,0.80401]
[1751342356508,0.80397,2487.1,2487.0,0.80398]
[1751342356707,4.01099985,2487.1,2487.0,0.80398]